fUST/lending_fUST_20240111
["ID","MTS","AMOUNT","RATE_DAILY","PERIOD"]
[311121333,1704919843520,-1466.07383029,0.00023217,2]
[311121335,1704919843530,-28433.29290075,0.00023658,2]
[311121406,1704919846475,-1250.66144998,0.00022886,2]
[311121408,1704919846485,-675.73689864,0.00022886,2]
[311121410,1704919846493,-2091.97,0.00023648,3]
[311121412,1704919846502,-29512.72500536,0.00023658,2]
[311121451,1704919846874,-9740.4124432,0.00023658,2]
[311121544,1704919939694,200.0,0.00025514,7]
[311121545,1704920138318,264734.25484779,0.00025514,7]
[311121547,1704920412972,-438.6540806,0.00017742,2]
[311121548,1704920413009,-285.7548216,0.00018736,2]
[311121549,1704920413054,-860.80550823,0.00018736,2]
[311121550,1704920413090,-242.59429943,0.00018737,2]
[311121551,1704920413126,-964.55150019,0.00018738,2]
[311121552,1704920413160,-360.7362932,0.00018738,2]
[311121553,1704920413195,-964.55150019,0.00018738,2]
[311121554,1704920413231,-154.92253873,0.00018739,2]
[311121555,1704920413267,-19828.39990193,0.00018739,2]
[311121556,1704920413308,-154.92253873,0.0001874,2]
[311121557,1704920413342,-1737.24988191,0.0001874,2]
[311121558,1704920413377,-261.7761853,0.00018741,2]
[311121559,1704920413412,-191.01244923,0.00018741,2]
[311121560,1704920413446,-901.68385165,0.00018742,2]
[311121561,1704920413482,-154.92253873,0.00018743,3]
[311121562,1704920413746,-14994.9242207,0.00018743,2]
[311121563,1704920440745,-154.92253873,0.00017741,3]
[311121564,1704920440777,-3809.42878928,0.00018735,2]
[311121565,1704920440820,-12071.29734398,0.00018735,2]
[311121571,1704920495288,-154.92253873,0.00017998,3]
[311121572,1704920495320,-154.92253873,0.00018745,2]
[311121573,1704920495355,-860.80550823,0.00018745,2]
[311121574,1704920495387,-360.7362932,0.00018745,2]
[311121575,1704920495419,-217.386201,0.00018746,2]
[311121576,1704920495452,-1737.24988191,0.00019323,2]
[311121577,1704920495484,-228.373849,0.00019324,2]
[311121578,1704920495515,-584.11564589,0.00019987,2]
[311121579,1704920495628,-7402.97508662,0.00019987,2]
[311121580,1704920499981,-2000.0,0.00019988,2]
[311121585,1704920540714,280.0,0.0002298,7]
[311121586,1704920541528,391.0,0.00025278,7]
[311121587,1704920667015,758.65551311,0.00016184,2]
[311121588,1704920703094,154.90705577,0.00016184,2]
[311121589,1704920723096,174.27605403,0.00016184,2]
[311121591,1704920774413,68912.16137709,0.00016184,2]
[311121592,1704920841617,391.0,0.0002153,7]
[311121593,1704920842279,222.0,0.00023683,7]
[311121640,1704921034045,-285.7548216,0.00015594,2]
[311121641,1704921034055,-132.76280457,0.00015594,2]
[311121642,1704921034112,-22.15973416,0.00015594,2]
[311121644,1704921034122,-1172.5308552,0.00015594,2]
[311121646,1704921034132,-154.92253873,0.00015594,2]
[311121648,1704921034142,-7987.09073251,0.00015595,2]
[311121651,1704921034151,-2504.83250052,0.00015595,2]
[311121654,1704921034162,-154.92253873,0.00015595,2]
[311121657,1704921034175,-154.92253873,0.00015595,2]
[311121658,1704921034192,-154.92253873,0.00015595,2]
[311121660,1704921034206,-154.92253873,0.00015595,2]
[311121662,1704921034219,-154.92253873,0.00015595,2]
[311121663,1704921034230,-154.92253873,0.00015595,2]
[311121664,1704921034241,-466.69842907,0.00015596,2]
[311121665,1704921034252,-154.92253873,0.00015596,2]
[311121666,1704921034265,-230.48582873,0.00015596,2]
[311121667,1704921034278,-322.83363774,0.00015596,2]
[311121668,1704921034291,-154.92253873,0.00015596,2]
[311121669,1704921034304,-154.92253873,0.00015596,2]
[311121670,1704921034316,-154.92253873,0.00015596,2]
[311121671,1704921034330,-7943.71182072,0.00015596,2]
[311121672,1704921034343,-400.02724112,0.00015596,2]
[311121673,1704921034354,-154.92253873,0.00015596,2]
[311121674,1704921034367,-671.84284078,0.00015597,2]
[311121675,1704921034381,-188.96266745,0.00015597,2]
[311121676,1704921034391,-212.96062918,0.00015597,2]
[311121677,1704921034402,-1587.23277287,0.00015597,2]
[311121678,1704921034415,-253.55669293,0.00015598,2]
[311121679,1704921034427,-154.92253873,0.00015598,2]
[311121680,1704921034439,-154.92253873,0.00015598,2]
[311121681,1704921034452,-154.92253873,0.00015598,2]
[311121682,1704921034464,-155.11612247,0.00015599,2]
[311121683,1704921034476,-43.2706716,0.00015672,2]
[311121684,1704921034491,-111.79208533,0.00015672,2]
[311121685,1704921034504,-155.29426556,0.00015672,2]
[311121686,1704921034516,-181.39110699,0.00015673,2]
[311121687,1704921034527,-158.56600314,0.00015673,2]
[311121688,1704921034537,-275.44972625,0.00015673,2]
[311121689,1704921034551,-158.32519524,0.00015673,2]
[311121690,1704921034562,-158.46233779,0.00015673,2]
[311121691,1704921034574,-1058.10385211,0.00015674,2]
[311121720,1704921038718,-154.92253873,0.00015594,2]
[311121721,1704921038729,-2708.4877235,0.00015594,2]
[311121722,1704921038740,-154.92253873,0.00015594,2]
[311121723,1704921038751,-158.30593028,0.00015672,2]
[311121724,1704921038762,-11007.88949272,0.00015673,2]
[311121725,1704921038773,-18602.1625568,0.00015674,2]
[311121726,1704921038783,-20832.93466306,0.00015674,2]
[311121727,1704921038923,-261.7761853,0.00015675,2]
[311121728,1704921038937,-947.43868379,0.00015675,2]
[311121729,1704921038948,-20861.46383375,0.00015675,2]
[311121730,1704921038957,-36890.05042447,0.00015675,2]
[311121731,1704921038966,-1737.24988191,0.00015676,2]
[311121732,1704921038975,-2927.32783457,0.00015676,2]
[311121733,1704921038985,-178.44106149,0.00015676,2]
[311121734,1704921038994,-287.51467122,0.00015676,2]
[311121735,1704921039003,-451.74832768,0.00015676,2]
[311121736,1704921039012,-294.43000119,0.00015677,2]
[311121737,1704921039022,-2034.80072126,0.00015677,2]
[311121738,1704921039032,-174.8658683,0.00015677,2]
[311121739,1704921039041,-3478.12894861,0.00015677,2]
[311121740,1704921039050,-260.59423718,0.00015677,2]
[311121741,1704921039059,-181.58656346,0.00015677,2]
[311121742,1704921039069,-251.17722982,0.00015677,2]
[311121743,1704921039078,-155.02121577,0.00015677,2]
[311121744,1704921039087,-180.58396718,0.00015677,2]
[311121745,1704921039097,-155.68551168,0.00015677,2]
[311121746,1704921039105,-184.36814101,0.00015677,2]
[311121747,1704921039114,-154.92253873,0.00015678,2]
[311121748,1704921039124,-2029.97306616,0.00015678,2]
[311121749,1704921039133,-1239.896093,0.00015678,2]
[311121750,1704921039142,-154.92253873,0.00015678,2]
[311121751,1704921039151,-198.82408315,0.00015678,2]
[311121752,1704921039160,-162.75529733,0.00015679,2]
[311121753,1704921039169,-360.7362932,0.00015679,2]
[311121754,1704921039178,-4788.51765555,0.00015679,2]
[311121755,1704921039188,-15880.72613326,0.00015679,2]
[311121756,1704921039199,-264.87381963,0.0001568,2]
[311121757,1704921039208,-242.59429943,0.0001568,2]
[311121758,1704921039217,-164.24940589,0.0001568,2]
[311121759,1704921039227,-1575.9466697,0.0001568,2]
[311121760,1704921039236,-165.70894112,0.00015682,2]
[311121761,1704921039246,-1053.31742641,0.00015682,2]
[311121762,1704921039254,-266.27745965,0.00015682,2]
[311121763,1704921039263,-160.92803022,0.00015682,2]
[311121764,1704921039273,-155.08995217,0.00015682,2]
[311121765,1704921039282,-250.02365042,0.00015682,2]
[311121766,1704921039295,-309.73667516,0.00015682,2]
[311121767,1704921039305,-154.92253873,0.00015682,2]
[311121768,1704921039314,-155.09098224,0.00015682,2]
[311121769,1704921039323,-469.64064105,0.00015691,2]
[311121770,1704921039332,-1215.61987979,0.00015691,2]
[311121771,1704921039341,-197.15151199,0.00015691,2]
[311121772,1704921039350,-2070.35788054,0.00015691,2]
[311121773,1704921039360,-3402.08028876,0.00015691,2]
[311121774,1704921039369,-155.04445476,0.00015691,2]
[311121775,1704921039379,-312.91539313,0.00015691,2]
[311121776,1704921039388,-8743.9820779,0.00015698,2]
[311121777,1704921039397,-212.94703521,0.00016161,2]
[311121778,1704921039406,-2047.56102621,0.00016175,2]
[311121779,1704921039416,-155.2553482,0.00016177,2]
[311121780,1704921039425,-179.97185984,0.00016177,2]
[311121781,1704921039434,-155.14218947,0.00016182,2]
[311121782,1704921039446,-677.06023414,0.00016182,2]
[311121783,1704921039457,-155.20374711,0.00016182,2]
[311121784,1704921039466,-48664.99034483,0.00016184,2]
[311121785,1704921039475,-271.96235488,0.000165,2]
[311121786,1704921039484,-200.0,0.00017794,2]
[311121787,1704921039493,-246.05359663,0.000178,2]
[311121788,1704921039503,-10500.0358078,0.00017898,2]
[311121789,1704921039512,-250.70442847,0.00017974,2]
[311121790,1704921039522,-3928.9660479,0.00017985,2]
[311121791,1704921039531,-690.33893408,0.000189,2]
[311121792,1704921039540,-209.48253552,0.0001899,2]
[311121793,1704921039550,-296.51677391,0.0001899,2]
[311121794,1704921039560,-155.49878153,0.0001899,2]
[311121795,1704921039569,-203.27409142,0.0001899,2]
[311121796,1704921039579,-155.16656031,0.0001899,2]
[311121797,1704921039588,-2224.81207994,0.0001899,5]
[311121798,1704921039598,-274.16463002,0.0001899,2]
[311121799,1704921039608,-560.33964085,0.0001899,2]
[311121800,1704921039617,-882.72082059,0.0001899,2]
[311121801,1704921039627,-6890.627364,0.00018993,2]
[311121802,1704921039636,-6890.627364,0.00018993,2]
[311121803,1704921039645,-24900.0,0.00018993,2]
[311121804,1704921039655,-1578.65511595,0.00019,2]
[311121805,1704921039665,-161.431354,0.00019178,2]
[311121806,1704921039674,-176.174747,0.00019178,2]
[311121807,1704921039683,-1112.08388858,0.000195,2]
[311121808,1704921039695,-280.0,0.00019573,2]
[311121809,1704921039704,-500.0,0.00019998,2]
[311121810,1704921039712,-901.30981836,0.00019998,2]
[311121811,1704921039722,-191.01244923,0.00019999,2]
[311121812,1704921039731,-5750.23733647,0.00019999,2]
[311121813,1704921039740,-270734.30120863,0.0002,2]
[311121814,1704921039749,-676.96253794,0.0002,2]
[311121815,1704921039758,-1015.856342,0.0002,2]
[311121816,1704921039767,-1015.856342,0.0002,2]
[311121817,1704921039777,-1015.856342,0.0002,2]
[311121818,1704921039786,-1015.856342,0.0002,2]
[311121819,1704921039795,-1015.856342,0.0002,2]
[311121820,1704921039806,-266.19065175,0.0002,2]
[311121821,1704921039815,-1195.09669838,0.0002,2]
[311121822,1704921039825,-569.19143491,0.0002,2]
[311121823,1704921039834,-853.57612089,0.0002,2]
[311121824,1704921039843,-200.0,0.0002,2]
[311121825,1704921039852,-154.90705577,0.0002,2]
[311121826,1704921039862,-154.90705577,0.0002,2]
[311121827,1704921039871,-154.90705577,0.0002,2]
[311121828,1704921039880,-156.27907449,0.0002,2]
[311121829,1704921039890,-236.79527182,0.0002,2]
[311121830,1704921039900,-665.20950523,0.0002,2]
[311121831,1704921039909,-168.53910427,0.0002,2]
[311121832,1704921039919,-154.90705577,0.0002,2]
[311121833,1704921039928,-813.346724,0.0002,2]
[311121834,1704921039940,-813.346724,0.0002,2]
[311121835,1704921039953,-6890.627364,0.0002,2]
[311121836,1704921039962,-6890.627364,0.0002,2]
[311121837,1704921039972,-2712.67485741,0.00020331,2]
[311121838,1704921039982,-326.73090334,0.00021,2]
[311121839,1704921039992,-75981.92542533,0.00021323,2]
[311121840,1704921040001,-813.346724,0.00021323,2]
[311121841,1704921040010,-813.346724,0.00021323,2]
[311121842,1704921040020,-6890.627364,0.00021323,2]
[311121843,1704921040030,-6890.627364,0.00021323,2]
[311121844,1704921040040,-690.33893405,0.0002165,2]
[311121845,1704921040050,-166.666666,0.00021918,2]
[311121846,1704921040060,-292.83058016,0.00022,4]
[311121847,1704921040069,-4917.8600325,0.00022,2]
[311121848,1704921040079,-156.00930331,0.00022,2]
[311121849,1704921040088,-3931.75997852,0.00022,2]
[311121850,1704921040097,-156.86767994,0.00022,2]
[311121851,1704921040106,-166.666666,0.00022431,2]
[311121852,1704921040116,-154.90705577,0.000225,2]
[311121853,1704921040125,-155.3221236,0.0002275,2]
[311121854,1704921040133,-166.666666,0.00022944,2]
[311121855,1704921040142,-9920.80434626,0.00023,2]
[311121856,1704921040152,-2093.08732709,0.00023,2]
[311121857,1704921040161,-500.0,0.00023288,2]
[311121858,1704921040171,-500.0,0.00023288,2]
[311121859,1704921040181,-500.0,0.00023288,2]
[311121860,1704921040190,-302.10118143,0.00023288,2]
[311121861,1704921040203,-500.0,0.00023288,2]
[311121862,1704921040213,-500.0,0.00023288,2]
[311121863,1704921040224,-500.0,0.00023288,2]
[311121864,1704921040233,-500.0,0.00023288,2]
[311121865,1704921040242,-558.81079209,0.00023288,2]
[311121866,1704921040252,-214.77142886,0.00023288,2]
[311121867,1704921040261,-500.0,0.00023288,2]
[311121868,1704921040270,-500.0,0.00023288,2]
[311121869,1704921040279,-500.0,0.00023288,2]
[311121870,1704921040289,-500.0,0.00023288,2]
[311121871,1704921040299,-500.0,0.00023288,2]
[311121872,1704921040308,-309.50492015,0.00023288,2]
[311121873,1704921040317,-500.0,0.00023288,2]
[311121874,1704921040328,-500.0,0.00023288,2]
[311121875,1704921040336,-500.0,0.00023288,2]
[311121876,1704921040346,-500.0,0.00023288,2]
[311121877,1704921040355,-250.57695824,0.00023288,2]
[311121878,1704921040364,-500.0,0.00023288,2]
[311121879,1704921040373,-500.0,0.00023288,2]
[311121880,1704921040382,-500.0,0.00023288,2]
[311121881,1704921040391,-500.0,0.00023288,2]
[311121882,1704921040401,-500.0,0.00023288,2]
[311121883,1704921040410,-500.0,0.00023288,2]
[311121884,1704921040419,-166.666666,0.00023456,2]
[311121885,1704921040428,-813.346724,0.00023655,2]
[311121886,1704921040437,-813.346724,0.00023655,2]
[311121887,1704921040449,-6890.627364,0.00023655,2]
[311121888,1704921040459,-6890.627364,0.00023655,2]
[311121889,1704921040467,-178.51706094,0.00023656,2]
[311121890,1704921040477,-300.0,0.00023683,2]
[311121891,1704921040485,-1821.85168105,0.00023683,2]
[311121892,1704921040494,-200.0,0.00023683,2]
[311121893,1704921040503,-2079.63666476,0.00023683,2]
[311121894,1704921040513,-718.73919182,0.00023898,2]
[311121895,1704921040523,-1095.17763347,0.00023898,2]
[311121896,1704921040532,-554.1621614,0.00023898,2]
[311121897,1704921040542,-366.07525278,0.00023899,2]
[311121898,1704921040551,-260.30288884,0.00023899,2]
[311121899,1704921040560,-309.75219824,0.00023899,2]
[311121900,1704921040570,-4807.78472407,0.00023899,2]
[311121901,1704921040579,-1030.59482552,0.00023899,2]
[311121904,1704921040588,-210.87208,0.00023899,2]
[311121907,1704921040597,-210.87208,0.00023899,2]
[311121909,1704921040607,-210.87208,0.00023899,2]
[311121910,1704921040616,-210.87208,0.00023899,2]
[311121912,1704921040625,-813.346724,0.00023899,2]
[311121914,1704921040634,-813.346724,0.00023899,2]
[311121915,1704921040643,-6890.627364,0.00023899,2]
[311121916,1704921040653,-6890.627364,0.00023899,2]
[311121917,1704921040662,-458.75406967,0.000239,2]
[311121918,1704921040671,-2873.08771636,0.00023901,2]
[311121919,1704921040680,-151.0,0.00023901,2]
[311121920,1704921040690,-151.0,0.00023901,2]
[311121921,1704921040700,-210.87208,0.00023902,2]
[311121922,1704921040709,-210.87208,0.00023902,2]
[311121923,1704921040718,-151.0,0.00023904,2]
[311121924,1704921040728,-151.0,0.00023904,2]
[311121925,1704921040737,-166.666666,0.00023969,2]
[311121926,1704921040746,-1015.81699283,0.00023998,2]
[311121927,1704921040756,-2293.16748545,0.00024,2]
[311121928,1704921040765,-614.01289661,0.00024,2]
[311121929,1704921040775,-3594.98636888,0.00024192,2]
[311121930,1704921040785,-690.33893405,0.000244,2]
[311121931,1704921040795,-166.666666,0.00024482,2]
[311121932,1704921040804,-497.00944952,0.0002498,5]
[311121933,1704921040813,-1199.86594426,0.00025,2]
[311121934,1704921040822,-155.60722897,0.00025,2]
[311121935,1704921040832,-421.96234273,0.00025,2]
[311121936,1704921040841,-3000.0,0.00025,2]
[311121937,1704921040851,-155.10911915,0.00025,2]
[311121938,1704921040860,-813.346724,0.00025,2]
[311121939,1704921040869,-813.346724,0.00025,2]
[311121940,1704921040878,-6890.627364,0.00025,2]
[311121941,1704921040887,-6890.627364,0.00025,2]
[311121942,1704921040897,-151.51510611,0.00025227,2]
[311121943,1704921040907,-999.30048966,0.00025277,2]
[311121944,1704921040916,-763.40324942,0.00025278,2]
[311121945,1704921040925,-157.00158088,0.00025278,2]
[311121946,1704921040935,-154.94093055,0.00025514,2]
[311121947,1704921040949,-151.0,0.00025764,2]
[311121948,1704921040958,-525.91402641,0.00026,2]
[311121949,1704921040968,-2126.09470477,0.00026,2]
[311121950,1704921040977,-677.27393931,0.00026292,2]
[311121951,1704921040987,-309.55113308,0.00026292,2]
[311121952,1704921040996,-620.56392675,0.000264,2]
[311121953,1704921041006,-620.15552741,0.00026729,2]
[311121954,1704921041015,-3453.70725294,0.00027,2]
[311121955,1704921041024,-733.25771754,0.00027,2]
[311121956,1704921041034,-690.33893405,0.0002715,2]
[311121957,1704921041044,-151.0,0.00027337,2]
[311121958,1704921041054,-500.0,0.00027397,2]
[311121959,1704921041063,-210.87208,0.00027397,2]
[311121960,1704921041073,-210.87208,0.00027397,2]
[311121961,1704921041082,-813.346724,0.00027397,2]
[311121962,1704921041092,-813.346724,0.00027397,2]
[311121963,1704921041102,-16690.14,0.00027397,3]
[311121964,1704921041111,-6890.627364,0.00027397,2]
[311121965,1704921041122,-6890.627364,0.00027397,2]
[311121966,1704921041131,-500.0,0.00027534,2]
[311121967,1704921041140,-500.0,0.00027671,2]
[311121968,1704921041150,-634.83719448,0.000277,2]
[311121969,1704921041159,-620.02819634,0.0002772,2]
[311121970,1704921041169,-500.0,0.00027808,2]
[311121971,1704921041178,-554.64018867,0.00027945,2]
[311121972,1704921041188,-157.52979972,0.00028,2]
[311121973,1704921041201,-620.00777637,0.00028066,2]
[311121974,1704921041210,-151.0,0.00028444,2]
[311121975,1704921041220,-151.0,0.00028444,2]
[311121976,1704921041229,-210.87208,0.00028444,2]
[311121977,1704921041238,-210.87208,0.00028444,2]
[311121978,1704921041247,-813.346724,0.00028451,2]
[311121979,1704921041257,-813.346724,0.00028451,2]
[311121980,1704921041266,-6890.627364,0.00028451,2]
[311121981,1704921041275,-151.0,0.00028459,2]
[311121983,1704921041285,-151.0,0.00028459,2]
[311121985,1704921041298,-210.87208,0.00028459,2]
[311121987,1704921041307,-210.87208,0.00028459,2]
[311121989,1704921041316,-210.87208,0.00028459,2]
[311121991,1704921041329,-210.87208,0.00028459,2]
[311121993,1704921041338,-813.346724,0.00028459,2]
[311121995,1704921041348,-813.346724,0.00028459,2]
[311121997,1704921041358,-813.346724,0.00028459,2]
[311121999,1704921041367,-813.346724,0.00028459,2]
[311122001,1704921041377,-6890.627364,0.00028459,2]
[311122003,1704921041386,-6890.627364,0.00028459,2]
[311122005,1704921041395,-3243.57460855,0.00028459,3]
[311122007,1704921041404,-1641.11288614,0.00028459,3]
[311122008,1704921041415,-5000.0,0.00028459,5]
[311122010,1704921041424,-5000.0,0.00028459,5]
[311122012,1704921041433,-3363.04235488,0.00028459,3]
[311122014,1704921041443,-91520.29247477,0.00028459,4]
[311122016,1704921041453,-5000.0,0.00028459,5]
[311122018,1704921041462,-29170.13967248,0.00028459,3]
[311122020,1704921041471,-5000.0,0.00028459,5]
[311122021,1704921041480,-11890.0796638,0.00028459,3]
[311122023,1704921041490,-151.0,0.0002891,2]
[311122024,1704921041500,-1982.97164167,0.00029,2]
[311122025,1704921041510,-813.346724,0.00029,2]
[311122026,1704921041519,-813.34672345,0.00029,2]
[311122027,1704921041528,-620.00140982,0.00029106,2]
[311122028,1704921041538,-480.93,0.00029144,2]
[311122029,1704921041547,-3594.98636888,0.00029192,2]
[311122030,1704921041556,-153.0,0.00029243,2]
[311122031,1704921041566,-9098.22062588,0.00029409,4]
[311122033,1704921041574,-155.0,0.0002941,2]
[311122035,1704921041584,-620.00038882,0.00029469,2]
[311122036,1704921041593,-153.0,0.00029507,2]
[311122038,1704921041602,-153.0,0.00029692,2]
[311122040,1704921041611,-306.8399605,0.00029692,2]
[311122042,1704921041621,-153.0,0.00029692,2]
[311122043,1704921041629,-153.0,0.00029692,2]
[311122055,1704921041733,-150.92453773,0.00029878,2]
[311122057,1704921041743,-690.33893405,0.000299,2]
[311122059,1704921041752,-165.56576911,0.0003,7]
[311122061,1704921041762,-6973.85683356,0.0003,4]
[311122063,1704921041772,-279.76130408,0.0003,4]
[311122065,1704921041781,-10528.01709463,0.0003,4]
[311122066,1704921041790,-282.4048077,0.0003,3]
[311122067,1704921041799,-463.38099934,0.0003,4]
[311122068,1704921041809,-639.65046808,0.0003,4]
[311122069,1704921041818,-151.0,0.0003,2]
[311122070,1704921041828,-151.0,0.0003,2]
[311122071,1704921041837,-4999.99,0.0003,2]
[311122072,1704921041847,-5000.0,0.0003,2]
[311122073,1704921041857,-5000.0,0.0003,2]
[311122074,1704921041866,-5000.0,0.0003,2]
[311122075,1704921041876,-5000.0,0.0003,2]
[311122076,1704921041886,-4377.21,0.0003,2]
[311122077,1704921041896,-5000.0,0.0003,2]
[311122078,1704921041907,-1101.4,0.0003,2]
[311122079,1704921041917,-154.90705577,0.0003,2]
[311122080,1704921041927,-210.87208,0.0003,2]
[311122081,1704921041937,-210.87208,0.0003,2]
[311122082,1704921041950,-210.87208,0.0003,2]
[311122083,1704921041959,-210.87208,0.0003,2]
[311122084,1704921041971,-169.0,0.0003,2]
[311122085,1704921041981,-151.0,0.00030136,2]
[311122086,1704921041990,-151.0,0.00030136,2]
[311122087,1704921041999,-151.0,0.00030136,2]
[311122088,1704921042010,-151.0,0.00030136,2]
[311122089,1704921042019,-210.87208,0.00030136,2]
[311122090,1704921042028,-210.872081,0.00030136,2]
[311122091,1704921042038,-500.0,0.00030136,2]
[311122092,1704921042048,-500.0,0.00030136,2]
[311122093,1704921042058,-220.0,0.00030136,2]
[311122094,1704921042067,-500.0,0.00030136,2]
[311122095,1704921042077,-500.0,0.00030136,2]
[311122096,1704921042087,-500.0,0.00030136,2]
[311122097,1704921042096,-500.0,0.00030136,2]
[311122098,1704921042106,-500.0,0.00030136,2]
[311122099,1704921042116,-500.0,0.00030136,2]
[311122100,1704921042126,-529.70216635,0.00030136,2]
[311122101,1704921042135,-494.45260509,0.00030136,2]
[311122102,1704921042146,-500.0,0.00030136,2]
[311122103,1704921042155,-500.0,0.00030136,2]
[311122104,1704921042165,-502.37533265,0.00030136,2]
[311122105,1704921042175,-500.0,0.00030136,2]
[311122106,1704921042185,-500.0,0.00030136,2]
[311122107,1704921042198,-500.0,0.00030136,2]
[311122108,1704921042207,-500.0,0.00030136,2]
[311122109,1704921042217,-500.0,0.00030136,2]
[311122110,1704921042227,-551.98388978,0.00030136,2]
[311122111,1704921042237,-500.0,0.00030136,2]
[311122112,1704921042247,-500.0,0.00030136,2]
[311122113,1704921042257,-500.0,0.00030136,2]
[311122114,1704921042266,-503.86625205,0.00030136,2]
[311122115,1704921042304,-527.53763568,0.00030136,2]
[311122116,1704921042317,-500.0,0.00030136,2]
[311122117,1704921042333,-383.88957127,0.00030136,2]
[311122118,1704921042343,-500.0,0.00030136,2]
[311122119,1704921042353,-500.0,0.00030136,2]
[311122120,1704921042363,-513.25278218,0.00030136,2]
[311122121,1704921042373,-500.0,0.00030136,2]
[311122122,1704921042383,-500.0,0.00030136,2]
[311122123,1704921042392,-500.66775379,0.00030136,2]
[311122124,1704921042402,-500.0,0.00030136,2]
[311122125,1704921042413,-155.0,0.00030136,2]
[311122126,1704921042423,-500.0,0.00030136,2]
[311122127,1704921042433,-506.65770087,0.00030136,2]
[311122128,1704921042444,-500.0,0.00030136,2]
[311122129,1704921042454,-562.16150847,0.00030136,2]
[311122130,1704921042464,-500.0,0.00030136,2]
[311122131,1704921042473,-500.0,0.00030136,2]
[311122132,1704921042483,-500.0,0.00030136,2]
[311122133,1704921042492,-503.43008667,0.00030136,2]
[311122134,1704921042502,-500.0,0.00030136,2]
[311122135,1704921042511,-500.0,0.00030136,2]
[311122136,1704921042521,-500.0,0.00030136,2]
[311122137,1704921042530,-502.36378172,0.00030136,2]
[311122138,1704921042540,-500.0,0.00030136,2]
[311122139,1704921042550,-500.0,0.00030136,2]
[311122140,1704921042560,-500.0,0.00030136,2]
[311122141,1704921042569,-500.0,0.00030136,2]
[311122142,1704921042579,-500.0,0.00030136,2]
[311122143,1704921042589,-500.0,0.00030136,2]
[311122144,1704921042598,-500.0,0.00030136,2]
[311122145,1704921042608,-500.0,0.00030136,2]
[311122146,1704921042617,-500.0,0.00030136,2]
[311122147,1704921042627,-500.0,0.00030136,2]
[311122148,1704921042636,-500.0,0.00030136,2]
[311122149,1704921042646,-446.21810783,0.00030136,2]
[311122150,1704921042656,-500.0,0.00030136,2]
[311122151,1704921042665,-500.0,0.00030136,2]
[311122152,1704921042674,-419.34890934,0.00030136,2]
[311122153,1704921042682,-500.0,0.00030136,2]
[311122154,1704921042691,-500.0,0.00030136,2]
[311122155,1704921042703,-500.0,0.00030136,2]
[311122156,1704921042712,-500.0,0.00030136,2]
[311122157,1704921042721,-1001.38259395,0.00030136,2]
[311122158,1704921042730,-500.0,0.00030136,2]
[311122159,1704921042738,-504.76831012,0.00030136,2]
[311122160,1704921042747,-500.0,0.00030136,2]
[311122161,1704921042756,-501.39318664,0.00030136,2]
[311122162,1704921042765,-500.0,0.00030136,2]
[311122163,1704921042774,-500.0,0.00030136,2]
[311122164,1704921042782,-591.65839959,0.00030136,2]
[311122165,1704921042792,-500.0,0.00030136,2]
[311122166,1704921042800,-500.0,0.00030136,2]
[311122167,1704921042809,-500.0,0.00030136,2]
[311122168,1704921042818,-500.0,0.00030136,2]
[311122169,1704921042827,-500.0,0.00030136,2]
[311122170,1704921042836,-500.0,0.00030136,2]
[311122171,1704921042847,-500.0,0.00030136,2]
[311122172,1704921042856,-500.0,0.00030136,2]
[311122173,1704921042865,-525.54,0.00030136,2]
[311122174,1704921042874,-200.0,0.00030136,2]
[311122175,1704921042883,-500.0,0.00030136,2]
[311122176,1704921042892,-500.0,0.00030136,2]
[311122177,1704921042902,-500.0,0.00030136,2]
[311122178,1704921042910,-177.8276672,0.00030136,2]
[311122179,1704921042935,-500.0,0.00030136,2]
[311122180,1704921042947,-500.0,0.00030136,2]